bitfinex/quotes_ETHUSD_20251125
["timestamp","ask_amount","ask_price","bid_price","bid_amount"]
[1764073850727,0.4682,2924.0,2923.9,3.52007999]
[1764073850944,0.6882,2924.0,2923.9,3.52007999]
[1764073852248,1.169,2924.0,2923.9,3.52007999]
[1764073852756,1.169,2924.0,2923.9,3.42007999]
[1764073853135,1.169,2924.0,2923.8,3.52012671]
[1764073853431,0.0012,2924.2,2923.8,6.97453535]
[1764073853630,0.22,2924.1,2924.0,3.51997264]
[1764073854154,0.0012,2924.2,2924.0,6.93994528]
[1764073854323,0.0012,2924.2,2924.1,0.1]
[1764073854646,0.702,2924.2,2924.1,0.1]
[1764073854846,1.1817,2924.2,2924.1,0.1]
[1764073855364,0.7009,2924.2,2924.1,0.1]
[1764073855667,1.1817,2924.2,2924.1,3.51985568]
[1764073856626,1.1817,2924.2,2924.1,0.1]
[1764073857357,1.1817,2924.2,2924.1,3.51985568]
[1764073859871,1.1817,2924.2,2924.1,0.1]
[1764073860227,1.1817,2924.2,2923.5,0.001]
[1764073860560,1.1817,2924.2,2923.6,3.52044055]
[1764073860561,0.4836,2924.1,2923.6,3.52044055]
[1764073860762,0.654,2923.7,2923.6,4.24603466]
[1764073860935,0.654,2923.7,2923.6,3.42044055]
[1764073861264,1.1376,2923.7,2923.6,3.42044055]
[1764073861463,1.1376,2923.7,2923.5,0.101]
[1764073861665,0.9092,2923.6,2923.5,0.001]
[1764073862096,0.0012,2924.2,2923.5,0.001]
[1764073862097,0.0012,2924.2,2923.5,1.31449411]
[1764073862368,0.0012,2924.2,2924.1,0.1]
[1764073862560,0.2212,2924.2,2924.1,0.1]
[1764073862866,1.1777,2924.2,2923.8,0.1]
[1764073863071,0.0012,2924.2,2923.6,0.0342044]
[1764073863235,0.4848,2924.2,2923.6,0.0342044]
[1764073863439,0.0012,2924.2,2924.1,0.1]
[1764073863642,0.2212,2924.2,2924.1,0.1]
[1764073863942,0.6941,2924.2,2924.1,3.51985568]
[1764073864181,1.1777,2924.2,2924.1,0.1]
[1764073864341,1.1777,2924.2,2924.1,3.51985568]
[1764073865242,1.1777,2924.2,2924.1,0.1]
[1764073865538,1.1777,2924.2,2924.1,3.51985568]
[1764073865539,0.9577,2924.2,2924.1,3.51985568]
[1764073865750,1.1777,2924.2,2924.1,3.51985568]
[1764073865979,1.1377,2924.2,2924.1,3.51985568]
[1764073866581,0.6541,2924.2,2924.1,3.51985568]
[1764073867512,0.002,2924.7,2924.1,7.42761136]
[1764073867711,1.02367581,2924.6,2924.3,0.1]
[1764073868021,0.7036,2924.6,2924.4,0.1]
[1764073868196,0.4836,2924.5,2924.3,0.1]
[1764073868517,0.4836,2924.5,2924.1,3.41985568]
[1764073868518,0.4729,2924.2,2924.1,3.41985568]
[1764073868868,0.9565,2924.2,2924.1,3.41985568]
[1764073869787,0.22,2924.6,2924.3,0.1]
[1764073869980,0.22,2924.6,2924.5,0.1]
[1764073870293,0.54007441,2924.6,2924.5,3.51938792]
[1764073870495,1.49657441,2924.6,2924.5,0.1]
[1764073870714,1.49657441,2924.6,2924.2,3.51970113]
[1764073870918,0.6508,2924.5,2924.2,6.93943986]
[1764073871212,0.4729,2924.3,2924.1,3.41985568]
[1764073871506,0.4836,2924.4,2924.1,3.41985568]
[1764073871707,0.4729,2924.2,2924.1,3.41985568]
[1764073872214,0.4721,2924.2,2924.1,3.41985568]
[1764073872413,0.9557,2924.2,2924.1,3.41985568]
[1764073873392,0.4721,2924.2,2924.1,3.41985568]
[1764073874718,0.4836,2924.5,2924.1,3.41985568]
[1764073874719,0.4836,2924.5,2924.3,0.1]
[1764073875312,0.4836,2924.5,2924.1,3.41985568]
[1764073875517,0.4729,2924.2,2924.1,3.51985568]
[1764073876195,0.4729,2924.2,2924.1,3.41985568]
[1764073876390,0.4729,2924.2,2924.1,3.51985568]
[1764073876987,0.9565,2924.2,2924.1,3.51985568]
[1764073877689,0.4729,2924.2,2924.1,3.51985568]
[1764073878221,0.4836,2924.4,2924.1,6.93971136]
[1764073878723,0.4729,2924.2,2924.1,3.51985568]
[1764073879492,0.9565,2924.2,2924.0,0.001]
[1764073879831,0.9565,2924.2,2924.0,3.42094816]
[1764073879832,0.3854,2924.1,2924.0,3.42094816]
[1764073880034,0.883,2924.1,2924.0,3.42097264]
[1764073880235,0.883,2924.1,2924.0,0.001]
[1764073880946,4.62358348,2924.1,2924.0,0.001]
[1764073881714,5.34917759,2924.1,2924.0,0.001]
[1764073881914,6.08798676,2924.1,2924.0,0.001]
[1764073882413,6.08749143,2924.1,2924.0,0.001]
[1764073882715,0.72559411,2924.0,2923.8,0.001]
[1764073882936,1.68424164,2923.9,2923.2,0.001]
[1764073883251,0.181,2923.6,2923.2,0.001]
[1764073883469,0.7207278,2923.6,2923.2,0.001]
[1764073883667,1.2183278,2923.6,2923.2,0.001]
[1764073884680,4.63876835,2923.6,2923.2,0.001]
[1764073886349,0.72559411,2923.5,2923.2,0.001]
[1764073886555,0.72559411,2923.5,2923.1,0.001]
[1764073886556,0.4532,2923.3,2923.1,0.001]
[1764073886718,0.405504,2923.0,2922.6,0.001]
[1764073886917,0.405504,2923.0,2921.0,0.452]
[1764073886918,0.6906,2922.7,2921.2,0.1]
[1764073887160,0.5397278,2922.6,2921.2,0.1]
[1764073887341,0.3207278,2922.5,2921.2,0.1]
[1764073887545,0.3401,2921.3,2921.1,3.4233679]
[1764073887852,0.219,2921.2,2921.1,3.4233679]
[1764073888037,0.219,2921.2,2921.1,3.5233679]
[1764073888351,0.7096,2921.2,2920.9,0.1]
[1764073888749,0.2,2921.7,2921.2,0.1]
[1764073888951,0.219,2921.6,2921.2,0.1]
[1764073889263,0.219,2921.6,2920.8,0.02]
[1764073889264,0.4906,2921.3,2920.8,0.02]
[1764073889463,0.4976,2921.6,2920.8,0.02]
[1764073889665,0.4976,2921.6,2920.9,0.1]
[1764073889870,0.2,2921.7,2920.8,3.44370908]
[1764073890175,0.219,2921.5,2921.2,0.1]
[1764073890542,0.7166,2921.5,2921.2,0.1]
[1764073890769,0.7166,2921.5,2921.2,3.52323626]
[1764073890975,0.7166,2921.5,2921.2,0.1]
[1764073891171,0.7166,2921.5,2921.2,3.52317537]
[1764073891373,0.4976,2921.5,2921.2,0.1]
[1764073891561,0.219,2921.4,2921.2,3.52325071]
[1764073891878,3.42215057,2922.2,2921.2,3.52325071]
[1764073891879,0.6976,2921.9,2921.5,0.1]
[1764073892049,0.219,2921.8,2921.5,0.1]
[1764073892380,0.7166,2921.8,2921.5,0.1]
[1764073892562,0.4906,2921.6,2921.5,0.1]
[1764073892881,0.4906,2921.6,2921.1,3.42336613]
[1764073893067,0.1026,2921.3,2921.0,0.1]
[1764073893267,0.219,2921.2,2921.0,0.1]
[1764073893462,0.219,2921.2,2921.1,0.1]
[1764073893779,0.219,2921.2,2921.1,0.5904]
[1764073894280,0.219,2921.2,2920.8,3.54370839]
[1764073894281,1.2072,2921.2,2920.8,3.54370839]
[1764073894784,0.7096,2921.2,2921.1,0.1]
[1764073895972,0.4976,2921.8,2921.2,0.1]
[1764073896172,0.1992,2921.9,2921.5,0.1]
[1764073896380,0.219,2921.8,2921.5,0.1]
[1764073896783,0.219,2921.8,2921.5,3.52289056]
[1764073897148,0.1992,2921.9,2921.5,6.94578975]
[1764073897466,0.2,2922.1,2921.8,0.1]
[1764073897677,0.219,2922.0,2921.1,0.182]
[1764073897858,0.4906,2921.6,2921.2,0.72559411]
[1764073898056,0.2,2922.1,2921.5,0.1]
[1764073898353,3.42139641,2922.8,2921.5,0.1]
[1764073898354,3.91923259,2922.6,2921.8,0.1]
[1764073898561,0.219,2922.5,2922.1,0.1]
[1764073898748,0.219,2922.4,2921.8,3.42254774]
[1764073898966,0.219,2922.4,2921.8,6.84509548]
[1764073899166,0.219,2922.4,2922.0,0.1]
[1764073899383,0.7166,2922.4,2922.0,0.1]
[1764073899589,0.4906,2922.1,2921.6,0.1]
[1764073900088,0.4906,2921.7,2921.6,0.1]
[1764073900260,0.219,2921.7,2921.6,0.4904]
[1764073900459,0.219,2921.7,2921.6,0.5904]
[1764073901060,0.219,2921.7,2921.6,4.01318203]
[1764073901558,3.91921089,2922.6,2921.8,0.1]
[1764073901765,3.91921089,2922.6,2922.1,0.1]
[1764073902174,0.7166,2922.5,2922.1,0.1]
[1764073902685,0.4976,2922.4,2921.7,0.452]
[1764073902985,0.4906,2922.2,2921.8,0.1]
[1764073903175,0.6976,2922.7,2922.1,0.1]
[1764073903378,0.219,2922.6,2922.1,0.1]
[1764073903889,0.219,2922.5,2921.9,3.42243061]
[1764073904088,0.2,2922.7,2922.2,0.1]
[1764073904296,4.12313132,2923.9,2922.6,0.4904]
[1764073904297,7.3389491,2923.4,2922.6,0.4904]
[1764073904467,7.3389491,2923.4,2922.7,0.1]
[1764073904657,0.4976,2923.4,2922.8,0.1]
[1764073904864,0.219,2923.3,2922.8,0.1]
[1764073905260,0.2,2923.5,2922.8,3.42133084]
[1764073905490,0.219,2923.4,2923.1,0.1]
[1764073905814,0.1693,2923.9,2922.8,7.2947076]
[1764073905815,0.002,2924.1,2923.4,0.6442]
[1764073905973,0.002,2924.1,2924.0,0.5904]
[1764073906161,0.221,2924.1,2924.0,0.5904]
[1764073906365,0.7116,2924.1,2923.9,0.1]
[1764073906765,0.221,2924.1,2923.9,0.1]
[1764073907113,0.221,2924.1,2923.4,1.33139411]
[1764073907114,0.4906,2924.0,2923.4,0.6058]
[1764073907268,0.4906,2924.0,2923.8,0.1]
[1764073907473,0.221,2924.1,2923.9,0.4904]
[1764073907811,0.221,2924.1,2924.0,0.1]
[1764073908009,0.221,2924.1,2923.5,6.8411151]
[1764073908231,0.221,2924.1,2923.8,0.1]
[1764073908700,0.221,2924.1,2923.5,3.52055755]
[1764073908701,0.562,2923.9,2923.5,3.52055755]
[1764073908869,0.562,2923.9,2923.1,0.452]
[1764073908870,0.1987,2923.6,2923.1,0.1538]
[1764073909195,0.7066,2923.5,2923.2,0.82559411]
[1764073909494,0.219,2923.5,2923.2,3.52087571]
[1764073909683,0.219,2923.5,2923.3,0.1]
[1764073909890,0.219,2923.4,2923.2,3.42087571]
[1764073910287,0.219,2923.4,2923.2,3.52087571]
[1764073910598,0.219,2923.4,2923.3,0.1]
[1764073910780,0.219,2923.4,2923.3,0.5676]
[1764073910987,0.7159,2923.4,2923.2,0.72559411]
[1764073911189,0.6896,2923.3,2922.7,0.1]
[1764073911495,0.4942,2923.2,2922.7,6.94297634]
[1764073911876,0.4942,2923.2,2922.7,3.52148252]
[1764073912783,0.9567,2923.2,2922.7,3.52148252]
[1764073912984,0.9567,2923.2,2922.7,6.94297634]
[1764073913297,0.9567,2923.2,2922.7,3.52148252]
[1764073913505,0.9567,2923.2,2922.7,6.94297634]
[1764073914111,0.9567,2923.2,2922.7,0.1]
[1764073914317,0.9567,2923.2,2922.7,3.52145993]
[1764073914871,0.4942,2923.2,2922.7,0.1]
[1764073915199,0.4942,2923.2,2922.6,3.42159909]
[1764073915200,0.4625,2923.1,2922.4,0.1]
[1764073915400,3.8835417,2923.1,2922.4,3.52180221]
[1764073915582,3.4210417,2923.1,2922.4,6.94364726]
[1764073915774,3.4210417,2923.1,2922.4,6.84364726]
[1764073915973,3.4210417,2923.1,2922.7,0.1]
[1764073916197,7.3045834,2923.1,2922.6,0.1]
[1764073916402,3.8835417,2923.1,2922.6,0.1]
[1764073916914,0.6815,2923.0,2922.6,0.1]
[1764073917615,0.2,2922.9,2922.5,3.42172068]
[1764073917812,0.2,2922.9,2922.3,3.60395799]
[1764073917813,0.6924,2922.9,2922.4,3.5217896]
[1764073917996,3.64016779,2923.0,2922.4,3.8926896]
[1764073918203,3.64016779,2923.0,2922.6,0.1]
[1764073918828,0.219,2922.9,2922.7,0.1]
[1764073920332,0.2182,2922.9,2922.7,0.1]
[1764073920544,0.72559411,2923.2,2922.8,0.49]
[1764073920704,0.002,2924.7,2924.0,0.1]
[1764073920705,0.002,2924.4,2924.0,0.1]
[1764073921045,0.221,2924.1,2924.0,0.59]
[1764073921194,0.221,2924.1,2924.0,0.1]
[1764073921398,0.221,2924.1,2923.9,0.1]
[1764073921598,0.221,2924.1,2923.6,0.405504]
[1764073921599,0.221,2924.1,2923.1,0.1538]
[1764073921799,0.4924,2924.0,2923.4,0.1]
[1764073922026,0.4924,2924.0,2923.5,0.72559411]
[1764073922225,0.4924,2924.0,2923.5,0.82559411]
[1764073922624,0.2,2923.9,2923.5,0.1]
[1764073923027,0.6924,2923.9,2923.5,0.1]
[1764073923750,3.64087157,2924.1,2923.5,0.1]
[1764073923918,0.002,2924.0,2923.5,3.52044596]
[1764073924422,0.2,2923.9,2923.5,3.52044596]
[1764073924639,0.4927,2923.6,2922.3,0.6529]
[1764073924811,0.7857,2923.5,2922.7,0.1]
[1764073925210,0.4924,2923.4,2922.7,0.1]
[1764073926042,3.91319113,2923.4,2922.8,3.42137676]
[1764073926354,7.33398226,2923.4,2922.7,0.1]
[1764073926566,7.33398226,2923.4,2922.4,0.4709]
[1764073926567,0.567,2922.8,2922.4,0.1]
[1764073926756,0.219,2922.7,2922.4,0.1]
[1764073926961,0.219,2922.7,2922.6,0.1]
[1764073927131,0.219,2922.7,2922.6,0.59]
[1764073927453,0.219,2922.7,2922.3,7.02586488]
[1764073927656,0.6924,2923.9,2922.8,0.1]
[1764073927952,0.53771452,2923.8,2923.2,0.1]
[1764073928158,0.31871452,2923.7,2923.2,0.1]
[1764073928454,7.15952192,2923.7,2923.2,0.1]
[1764073928657,7.15952192,2923.7,2922.8,0.1]
[1764073928658,0.4927,2923.3,2922.8,0.1]
[1764073928838,0.219,2923.2,2922.8,0.1]
[1764073930141,0.219,2923.2,2922.8,6.94267507]
[1764073930340,0.219,2923.2,2922.8,3.52129831]
[1764073930550,0.4924,2923.1,2922.3,0.182]
[1764073930860,0.4924,2923.1,2922.4,6.9436901]
[1764073930861,0.4927,2922.9,2922.4,6.9436901]
[1764073931351,1.0594,2922.9,2922.4,3.52184505]
[1764073932828,0.4924,2922.8,2922.4,3.52184505]
[1764073933138,0.219,2922.7,2922.4,3.52184505]
[1764073933761,0.219,2922.7,2922.4,6.9436901]
[1764073933967,1.21799411,2923.5,2922.7,0.1]
[1764073934167,6.46,2923.8,2923.0,0.1]
[1764073934168,0.31949697,2923.4,2923.0,0.1]
[1764073934371,0.219,2923.4,2923.0,0.1]
[1764073935068,0.4924,2923.8,2923.3,0.49]
[1764073935270,0.31958913,2923.7,2923.3,0.59]
[1764073935566,0.219,2923.6,2923.3,0.49]
[1764073935864,3.42198629,2924.0,2923.6,0.1]
[1764073936170,3.42198629,2924.0,2923.1,6.99585124]
[1764073936171,0.73858643,2923.9,2923.1,6.99585124]
[1764073936342,0.31958643,2923.8,2923.4,0.1]
[1764073936530,0.31958643,2923.8,2923.1,7.09585124]
[1764073936731,0.81198643,2923.8,2923.1,7.09585124]
[1764073936932,0.4924,2923.8,2923.1,0.2538]
[1764073937237,3.95899034,2923.7,2923.1,3.67481894]
[1764073937436,0.219,2923.7,2923.1,3.67481894]
[1764073937666,3.639348,2923.7,2923.1,3.67481894]
[1764073937859,0.219,2923.7,2923.1,7.09584456]
[1764073938068,0.31970575,2923.6,2923.2,0.1]
[1764073938567,0.81210575,2923.6,2923.2,0.1]
[1764073938769,0.4924,2923.6,2923.2,0.1]
[1764073939262,0.219,2923.7,2923.3,0.5709]
[1764073939464,0.31980202,2923.6,2923.5,0.1]
[1764073939671,0.219,2923.6,2923.1,0.1538]
[1764073939868,0.7114,2923.6,2923.3,0.1]
[1764073940669,0.7114,2923.6,2922.8,0.4709]
[1764073940670,0.4639,2923.4,2922.3,0.6697]
[1764073940840,0.1133,2923.3,2923.0,0.1]
[1764073941035,3.90236629,2923.5,2923.0,3.52110475]
[1764073941574,0.4818,2923.4,2923.0,0.1]
[1764073941769,3.42056629,2923.5,2923.0,3.52113107]
[1764073942067,0.2,2923.9,2923.0,3.52113107]
[1764073942068,0.219,2923.4,2923.3,0.1]
[1764073942878,0.6829,2923.4,2923.3,0.1]
[1764073943038,0.6829,2923.4,2923.2,0.1]
[1764073943465,0.6829,2923.4,2923.2,3.5209061]
[1764073943664,0.6829,2923.4,2922.8,0.001]
[1764073943665,0.5951,2923.3,2922.8,0.001]
[1764073943872,0.5004,2922.9,2922.8,0.001]
[1764073944084,0.7194,2922.9,2922.8,0.001]
[1764073944249,1.2004,2922.9,2922.8,0.001]
[1764073944571,1.52025901,2922.9,2922.8,0.001]
[1764073944743,0.85285901,2922.9,2922.8,0.001]
[1764073945258,1.52025901,2922.9,2922.8,0.001]
[1764073945640,4.94151871,2922.9,2922.8,0.001]
[1764073947377,3.74111871,2922.9,2922.8,0.001]
[1764073947581,5.03261871,2922.9,2922.8,0.001]
[1764073948674,5.03261871,2922.9,2922.1,3.42219636]
[1764073948675,8.45387841,2922.9,2922.1,3.38248636]
[1764073948880,0.80165901,2922.8,2922.0,3.52226052]
[1764073949047,0.31985901,2922.7,2922.0,3.52226052]
[1764073949853,0.31985901,2922.7,2922.6,0.4787]
[1764073950053,0.219,2922.7,2922.6,0.4787]
[1764073950373,0.6829,2922.7,2922.5,0.1]
[1764073950561,0.6829,2922.7,2922.3,0.1]
[1764073950961,0.219,2922.7,2922.3,0.5877]
[1764073951160,0.219,2922.7,2922.3,0.1]
[1764073951877,0.219,2922.7,2922.4,3.42184505]
[1764073952302,0.4639,2922.5,2922.1,0.1]
[1764073953049,0.4639,2922.5,2922.1,0.82559411]
[1764073953262,3.64052676,2922.7,2922.1,0.82559411]
[1764073953263,0.219,2922.7,2922.1,0.82559411]
[1764073953450,1.21329411,2923.6,2922.4,0.1]
[1764073953771,1.21329411,2923.6,2922.7,0.1]
[1764073953772,0.6674,2923.2,2922.7,0.1]
[1764073953964,3.42114266,2923.0,2922.7,0.1]
[1764073954180,0.53893959,2922.9,2922.7,0.1]
[1764073954387,0.31993959,2922.8,2922.7,0.1]
[1764073954784,0.31993959,2922.8,2922.4,0.1]
[1764073954785,0.78383959,2922.8,2922.4,0.1]
[1764073955079,0.4639,2922.8,2922.4,0.1]
[1764073956295,3.885281,2922.8,2922.4,0.1]
[1764073956670,3.88530883,2922.8,2922.2,3.42203532]
[1764073956870,3.88530883,2922.8,2922.1,4.00980154]
[1764073956871,0.219,2922.7,2922.1,4.00980154]
[1764073957787,0.219,2922.7,2922.1,7.4319979]
[1764073958101,0.219,2922.6,2922.3,0.1]
[1764073958302,0.219,2922.6,2922.2,0.4877]
[1764073958482,0.4818,2923.1,2922.5,0.4787]
[1764073958800,0.53901726,2923.0,2922.7,0.1]
[1764073958965,0.32001726,2922.9,2922.7,0.1]
[1764073959166,0.32001726,2922.9,2922.8,0.4787]
[1764073959703,0.32001726,2922.9,2922.1,6.84438608]
[1764073959704,0.78391726,2922.9,2922.1,6.84438608]
[1764073959862,0.4639,2922.9,2922.3,0.1]
[1764073960061,0.3200045,2922.8,2922.3,0.1]
[1764073960498,0.4818,2922.7,2922.3,3.42195723]
[1764073960682,0.219,2922.6,2922.3,3.42195723]
[1764073960999,0.219,2922.6,2922.2,3.42201772]
[1764073961163,0.219,2922.6,2922.1,4.24772782]
[1764073961366,0.7008,2922.6,2922.1,7.56992418]
[1764073961597,0.7008,2922.6,2922.1,7.66992418]
[1764073961773,0.7008,2922.6,2922.1,4.24772782]
[1764073961979,0.4818,2922.5,2922.1,4.14772782]
[1764073962598,0.219,2922.6,2922.2,0.1]
[1764073962803,0.219,2922.6,2922.3,0.1]
[1764073962804,3.64064295,2922.6,2922.3,0.1]
[1764073963105,3.64064295,2922.6,2922.1,3.42219311]
[1764073963106,0.7008,2922.6,2922.2,0.1]
[1764073964414,0.7008,2922.6,2922.2,3.52207683]
[1764073964617,4.12244011,2922.6,2922.2,0.1]
[1764073965322,0.4639,2922.3,2922.0,0.001]
[1764073965615,0.185,2922.1,2922.0,0.001]
[1764073965821,0.50498757,2922.1,2922.0,0.001]
[1764073966113,0.98678757,2922.1,2922.0,0.001]
[1764073966317,4.40898393,2922.1,2922.0,0.001]
[1764073968281,4.40818393,2922.1,2922.0,0.001]
[1764073969517,5.53928204,2922.1,2922.0,0.001]
[1764073969905,6.27630144,2922.1,2922.0,0.001]
[1764073972296,6.27566987,2922.1,2922.0,0.001]
[1764073973816,0.72559411,2922.0,2921.9,0.001]
[1764073974004,2.73816951,2922.0,2921.9,0.001]
[1764073974407,6.37948299,2922.0,2921.9,0.001]
[1764073974620,6.16048299,2922.0,2921.9,0.001]
[1764073974846,5.42409516,2922.0,2921.9,0.001]
[1764073975198,4.20340105,2922.0,2921.9,0.001]
[1764073975399,3.74230105,2922.0,2921.9,0.4968]
[1764073975721,5.64929516,2922.0,2921.9,0.001]
[1764073976406,6.05479916,2922.0,2921.9,0.001]
[1764073977335,5.64929516,2922.0,2921.9,0.001]
[1764073978633,6.05479916,2922.0,2921.9,0.001]
[1764073980402,6.78982692,2922.0,2921.9,0.001]
[1764073981013,6.05479916,2922.0,2921.9,0.001]
[1764073981804,5.83579916,2922.0,2921.9,0.001]
[1764073982005,6.05479916,2922.0,2921.9,0.001]
[1764073982204,5.83579916,2922.0,2921.9,0.001]
[1764073982518,6.05479916,2922.0,2921.9,0.001]
[1764073982842,5.43029516,2922.0,2921.9,0.001]
[1764073983133,5.64929516,2922.0,2921.9,0.001]
[1764073984126,5.43029516,2922.0,2921.9,0.001]
[1764073984317,5.64929516,2922.0,2921.9,0.001]
[1764073984515,4.93519516,2922.0,2921.9,0.001]
[1764073984713,4.68689516,2922.0,2921.9,0.4678]
[1764073984934,4.68689516,2922.0,2921.9,0.001]
[1764073985335,3.96130105,2922.0,2921.9,0.001]
[1764073985523,4.46789516,2922.0,2921.9,0.001]
[1764073985729,4.68689516,2922.0,2921.9,0.001]
[1764073986103,4.68689516,2922.0,2921.9,0.4678]
[1764073986308,0.31998757,2922.0,2921.9,0.9472]
[1764073986538,0.219,2922.0,2921.9,0.5678]
[1764073986715,3.64131348,2922.0,2921.9,0.4678]
[1764073987331,0.219,2922.0,2921.9,0.9472]
[1764073988144,0.53816659,2922.0,2921.9,0.4678]
[1764073988353,3.42420684,2922.1,2921.9,0.9472]
[1764073988657,3.42420684,2922.1,2922.0,0.4668]
[1764073988658,0.002,2922.1,2922.0,0.4668]
[1764073988846,0.221,2922.1,2922.0,0.4668]
[1764073989008,0.221,2922.1,2922.0,0.9462]
[1764073989212,0.54025498,2922.1,2922.0,0.9462]
[1764073989813,1.01375498,2922.1,2921.9,0.0001]
[1764073990113,0.31925498,2922.0,2921.9,0.0001]
[1764073990335,0.48775498,2922.0,2921.9,0.0001]
[1764073990542,0.97585498,2922.0,2921.9,0.0001]
[1764073990743,5.12376257,2922.0,2921.9,0.0001]
[1764073991515,4.63566257,2922.0,2921.9,0.0001]
[1764073991713,4.31640759,2922.0,2921.9,0.0001]
[1764073992017,5.02350759,2922.0,2921.9,0.0001]
[1764073992343,5.42821159,2922.0,2921.9,0.0001]
[1764073993220,6.16539836,2922.0,2921.9,0.0001]
[1764073995459,5.27179436,2922.0,2921.9,0.0001]
[1764073995666,5.75989436,2922.0,2921.9,0.0001]
[1764073996145,6.16539836,2922.0,2921.9,0.0001]
[1764073996946,5.05279436,2922.0,2921.9,0.0001]
[1764073997247,5.75989436,2922.0,2921.9,0.0001]
[1764073998019,6.16539836,2922.0,2921.9,0.0001]
[1764073999925,5.54089436,2922.0,2921.9,0.0001]
[1764074000254,5.75989436,2922.0,2921.9,0.0001]
[1764074001169,7.55718344,2922.0,2921.9,0.0001]
[1764074001373,16.82419808,2922.0,2921.9,0.0001]
[1764074001539,18.80123845,2922.0,2921.9,0.0001]
[1764074001875,38.71447694,2922.0,2921.9,0.0001]
[1764074002070,18.74481084,2921.9,2921.8,0.001]
[1764074002264,9.48312124,2921.9,2921.8,0.001]
[1764074002459,5.37138446,2921.9,2921.8,0.001]
[1764074002639,5.37138446,2921.9,2921.6,0.001]
[1764074002839,2.57376926,2921.7,2921.6,0.001]
[1764074003040,3.63160439,2921.7,2921.6,0.001]
[1764074003240,4.09430439,2921.7,2921.6,0.001]
[1764074003468,7.98708699,2921.7,2921.6,0.001]
[1764074004273,8.382851,2921.7,2921.6,0.001]
[1764074005178,16.6010054,2921.7,2921.6,0.001]
[1764074005366,20.2080054,2921.7,2921.6,0.001]
[1764074006552,0.405504,2921.5,2919.8,0.6429]
[1764074006759,1.057504,2920.9,2919.8,0.6429]
[1764074006944,1.59715236,2920.9,2919.8,0.6429]
[1764074007145,3.52263324,2920.9,2919.8,0.6429]
[1764074007550,6.94623555,2920.9,2919.8,0.6429]
[1764074008546,6.94623555,2920.9,2919.3,3.42543444]
[1764074008547,6.94623555,2920.9,2919.4,0.4891]
[1764074009785,6.94623555,2920.9,2920.2,0.1538]
[1764074010365,6.94623555,2920.9,2919.4,0.4891]
[1764074010886,7.34199956,2920.9,2919.2,3.60833554]
[1764074011087,7.34199956,2920.9,2919.6,0.4891]
[1764074011286,7.34199956,2920.9,2919.2,0.1828]
[1764074011287,10.69084255,2920.9,2920.8,1e-08]
[1764074011487,11.92484255,2920.9,2920.8,1e-08]
[1764074011650,15.92760656,2920.9,2920.8,1e-08]
[1764074011850,17.62732862,2920.9,2920.8,1e-08]
[1764074012064,16.39772428,2920.9,2920.8,1e-08]
[1764074012270,17.62418598,2920.9,2920.8,1e-08]
[1764074012792,22.85772428,2920.9,2920.8,1e-08]
[1764074013189,22.85772428,2920.9,2918.8,0.182]
[1764074013190,0.405504,2920.6,2918.8,0.182]
[1764074013357,0.405504,2920.2,2918.8,0.182]
[1764074013557,17.1238741,2919.9,2918.8,0.182]
[1764074013907,1.84595891,2919.8,2918.8,0.182]
[1764074014209,0.405504,2919.6,2918.8,0.4891]
[1764074014503,0.405504,2919.4,2918.9,0.4891]
[1764074014670,0.31909679,2919.3,2918.9,0.4891]
[1764074015000,0.219,2919.2,2918.9,0.4891]
[1764074015200,0.72559411,2919.8,2919.2,0.6717]
[1764074015349,6.84954964,2919.9,2919.7,0.4889]
[1764074015549,0.53759817,2919.8,2919.2,0.1828]
[1764074015753,0.72559411,2919.6,2919.2,0.6719]
[1764074016221,0.72479411,2919.6,2919.5,0.4889]
[1764074016506,1.04328094,2919.6,2919.5,0.4889]
[1764074016871,1.04328094,2919.6,2919.2,0.1828]
[1764074017198,0.31848683,2919.5,2919.2,0.1828]
[1764074017391,0.31848683,2919.5,2919.0,0.1828]
[1764074017598,6.85095742,2919.3,2919.0,0.1828]
[1764074017814,0.624504,2919.2,2919.0,0.1828]
[1764074018114,0.31845618,2919.1,2918.5,0.1824]
[1764074018308,0.31845618,2919.1,2918.6,0.4891]
[1764074018471,0.31845618,2919.1,2919.0,0.4889]
[1764074018672,0.31845618,2919.1,2918.6,0.4891]
[1764074019782,0.72559411,2918.9,2918.6,0.4891]
[1764074019983,0.219,2918.8,2918.6,0.4891]
[1764074020500,0.219,2918.8,2918.7,0.4889]
[1764074021007,0.219,2918.8,2918.7,0.978]
[1764074021508,6.85048808,2919.5,2918.8,0.1]
[1764074021703,6.85095742,2919.3,2918.8,0.5891]
[1764074022204,4.15107282,2919.3,2919.2,0.6713]
[1764074022591,4.15107282,2919.3,2919.2,1.1604]
[1764074025504,0.72559411,2919.3,2919.2,1.1604]
[1764074025692,4.37007282,2919.3,2919.2,1.1604]
[1764074027220,0.002,2919.6,2919.2,1.1604]
[1764074027381,0.002,2919.6,2919.5,0.4889]
[1764074027577,0.221,2919.6,2919.5,0.4889]
[1764074027779,3.64612672,2919.6,2919.5,0.4889]
[1764074030305,3.96522671,2919.6,2919.5,0.4889]
[1764074030911,4.69082082,2919.6,2919.5,0.4889]
[1764074031514,12.01427426,2919.6,2919.2,0.1824]
[1764074031715,1.0446941,2919.5,2919.2,0.1824]
[1764074031899,0.31909999,2919.4,2919.2,0.1824]